[Event "Titled Tuesday Blitz October 12 2021"]
[White "Molina, Roberto Junio Brito"]
[Black "Perez Gormaz, Matias"]
[WhiteFideId "2109450"]
[BlackFideId "3406342"]
[WhiteElo "2402"]
[BlackElo "2352"]
[Result "1-0"]
[Round "09"]
[TimeControl "180+1"]
[Date "2021.10.12"]
[WhiteClock "0:00:18"]
[BlackClock "0:00:03"]

1. d4 {[%clk 0:03:00]}  d5 {[%clk 0:03:00]} 2. Nf3 {[%clk 0:03:00]}  e6 {[%clk 0:03:00]} 3. c4 {[%clk 0:02:59]}  a6 {[%clk 0:03:01]} 4. b3 {[%clk 0:02:54]}  Nf6 {[%clk 0:03:00]} 5. e3 {[%clk 0:02:52]}  b6 {[%clk 0:03:00]} 6. Bb2 {[%clk 0:02:52]}  Bb7 {[%clk 0:03:01]} 7. Bd3 {[%clk 0:02:52]}  Nbd7 {[%clk 0:03:01]} 8. O-O {[%clk 0:02:52]}  Bd6 {[%clk 0:02:57]} 9. Nbd2 {[%clk 0:02:52]}  O-O {[%clk 0:02:57]} 10. Qe2 {[%clk 0:02:52]}  Ne4 {[%clk 0:02:55]} 11. Rac1 {[%clk 0:02:51]}  Qf6 {[%clk 0:02:51]} 12. Rc2 {[%clk 0:02:48]}  Qh6 {[%clk 0:02:47]} 13. cxd5 {[%clk 0:02:41]}  exd5 {[%clk 0:02:42]} 14. Ne5 {[%clk 0:02:32]}  f6 {[%clk 0:02:25]} 15. Nef3 {[%clk 0:02:31]}  Rfe8 {[%clk 0:02:10]} 16. Rfc1 {[%clk 0:02:29]}  c5 {[%clk 0:02:01]} 17. g3 {[%clk 0:02:24]}  Kh8 {[%clk 0:01:56]} 18. Nh4 {[%clk 0:02:16]}  Qg5 {[%clk 0:01:33]} 19. f4 {[%clk 0:02:08]}  Nxg3 {[%clk 0:00:44]} 20. fxg5 {[%clk 0:02:07]}  Nxe2+ {[%clk 0:00:44]} 21. Bxe2 {[%clk 0:02:07]}  Rxe3 {[%clk 0:00:37]} 22. Nf5 {[%clk 0:01:24]}  Bxh2+ {[%clk 0:00:36]} 23. Kxh2 {[%clk 0:01:13]}  Rxe2+ {[%clk 0:00:36]} 24. Kg3 {[%clk 0:01:13]}  fxg5 {[%clk 0:00:28]} 25. Nf3 {[%clk 0:01:13]}  Rxc2 {[%clk 0:00:27]} 26. Rxc2 {[%clk 0:01:14]}  h6 {[%clk 0:00:27]} 27. dxc5 {[%clk 0:01:10]}  bxc5 {[%clk 0:00:22]} 28. Bxg7+ {[%clk 0:00:47]}  Kh7 {[%clk 0:00:22]} 29. Re2 {[%clk 0:00:36]}  Kg6 {[%clk 0:00:16]} 30. Re7 {[%clk 0:00:36]}  Bc6 {[%clk 0:00:14]} 31. Nxh6 {[%clk 0:00:33]}  d4 {[%clk 0:00:11]} 32. Re6+ {[%clk 0:00:25]}  Kxg7 {[%clk 0:00:11]} 33. Nf5+ {[%clk 0:00:24]}  Kf7 {[%clk 0:00:08]} 34. Nxg5+ {[%clk 0:00:24]}  Kg8 {[%clk 0:00:07]} 35. Rg6+ {[%clk 0:00:22]}  Kf8 {[%clk 0:00:06]} 36. Rxc6 {[%clk 0:00:23]}  Re8 {[%clk 0:00:04]} 37. Kf4 {[%clk 0:00:21]}  Re1 {[%clk 0:00:04]} 38. Rc8+ {[%clk 0:00:19]}  Re8 {[%clk 0:00:04]} 39. Nh7+ {[%clk 0:00:17]}  Kf7 {[%clk 0:00:03]} 40. Nd6+ {[%clk 0:00:18]} 1-0


[Site "https://www.chess.com"]

[Event "Titled Tuesday Blitz October 12 2021"]
[White "Nagy, Gabor"]
[Black "Erdogmus, Yagiz Kaan"]
[WhiteFideId "737119"]
[BlackFideId "44599790"]
[WhiteElo "2534"]
[BlackElo "1783"]
[Result "1-0"]
[Round "09"]
[TimeControl "180+1"]
[Date "2021.10.12"]
[WhiteClock "0:00:42"]
[BlackClock "0:00:07"]

1. d4 {[%clk 0:03:00]}  Nf6 {[%clk 0:02:58]} 2. Nf3 {[%clk 0:03:00]}  g6 {[%clk 0:02:58]} 3. Bg5 {[%clk 0:03:01]}  Bg7 {[%clk 0:02:58]} 4. Nbd2 {[%clk 0:03:01]}  d5 {[%clk 0:02:56]} 5. e3 {[%clk 0:03:00]}  O-O {[%clk 0:02:54]} 6. Be2 {[%clk 0:03:00]}  c5 {[%clk 0:02:53]} 7. O-O {[%clk 0:02:56]}  cxd4 {[%clk 0:02:50]} 8. exd4 {[%clk 0:02:57]}  Ne4 {[%clk 0:02:48]} 9. Bh4 {[%clk 0:02:54]}  Nc6 {[%clk 0:02:32]} 10. c3 {[%clk 0:02:53]}  Qb6 {[%clk 0:02:31]} 11. Nxe4 {[%clk 0:02:42]}  dxe4 {[%clk 0:02:32]} 12. Nd2 {[%clk 0:02:42]}  Qxb2 {[%clk 0:02:25]} 13. d5 {[%clk 0:02:39]}  Bxc3 {[%clk 0:02:05]} 14. dxc6 {[%clk 0:02:32]}  Qxd2 {[%clk 0:02:02]} 15. Qxd2 {[%clk 0:02:10]}  Bxd2 {[%clk 0:02:03]} 16. Rfd1 {[%clk 0:02:06]}  Bc3 {[%clk 0:01:44]} 17. Rac1 {[%clk 0:02:03]}  Bf6 {[%clk 0:01:41]} 18. Bxf6 {[%clk 0:02:01]}  exf6 {[%clk 0:01:42]} 19. c7 {[%clk 0:02:01]}  Be6 {[%clk 0:01:34]} 20. a4 {[%clk 0:01:59]}  Rfc8 {[%clk 0:01:32]} 21. a5 {[%clk 0:01:57]}  a6 {[%clk 0:01:26]} 22. f3 {[%clk 0:01:53]}  f5 {[%clk 0:01:23]} 23. Kf2 {[%clk 0:01:52]}  Kf8 {[%clk 0:01:22]} 24. Ke3 {[%clk 0:01:51]}  Ke7 {[%clk 0:01:20]} 25. fxe4 {[%clk 0:01:50]}  fxe4 {[%clk 0:01:21]} 26. Kxe4 {[%clk 0:01:50]}  Bd7 {[%clk 0:01:21]} 27. Kd5 {[%clk 0:01:28]}  Ra7 {[%clk 0:00:53]} 28. Kc5 {[%clk 0:01:22]}  Ba4 {[%clk 0:00:35]} 29. Kb6 {[%clk 0:01:12]}  Bxd1 {[%clk 0:00:34]} 30. Bxd1 {[%clk 0:01:13]}  Raa8 {[%clk 0:00:33]} 31. Bf3 {[%clk 0:01:11]}  Kd7 {[%clk 0:00:25]} 32. Bxb7 {[%clk 0:01:10]}  Re8 {[%clk 0:00:26]} 33. Bc6+ {[%clk 0:01:06]}  Kd6 {[%clk 0:00:25]} 34. Rd1+ {[%clk 0:01:00]}  Ke7 {[%clk 0:00:24]} 35. Re1+ {[%clk 0:01:00]}  Kf8 {[%clk 0:00:23]} 36. Rxe8+ {[%clk 0:01:00]}  Rxe8 {[%clk 0:00:24]} 37. Bxe8 {[%clk 0:01:01]}  Kxe8 {[%clk 0:00:25]} 38. c8=Q+ {[%clk 0:01:01]}  Ke7 {[%clk 0:00:26]} 39. Qxa6 {[%clk 0:01:02]}  Kf6 {[%clk 0:00:27]} 40. Qb7 {[%clk 0:01:02]}  Kg5 {[%clk 0:00:28]} 41. a6 {[%clk 0:01:03]}  f5 {[%clk 0:00:29]} 42. a7 {[%clk 0:01:03]}  f4 {[%clk 0:00:30]} 43. a8=Q {[%clk 0:01:03]}  Kg4 {[%clk 0:00:31]} 44. Qf3+ {[%clk 0:01:03]}  Kh4 {[%clk 0:00:30]} 45. Qxf4+ {[%clk 0:01:03]}  Kh5 {[%clk 0:00:31]} 46. h4 {[%clk 0:00:56]}  g5 {[%clk 0:00:32]} 47. Qe8+ {[%clk 0:00:54]}  Kh6 {[%clk 0:00:33]} 48. hxg5+ {[%clk 0:00:52]}  Kg7 {[%clk 0:00:33]} 49. g4 {[%clk 0:00:45]}  h6 {[%clk 0:00:22]} 50. Qf6+ {[%clk 0:00:43]}  Kh7 {[%clk 0:00:07]} 51. g6# {[%clk 0:00:42]} 1-0


[Site "https://www.chess.com"]

[Event "Titled Tuesday Blitz October 12 2021"]
[White "Rasulov, Vugar"]
[Black "Sviridov, Valery"]
[WhiteFideId "13402390"]
[BlackFideId "4120680"]
[WhiteElo "2560"]
[BlackElo "2454"]
[Result "1-0"]
[Round "09"]
[TimeControl "180+1"]
[Date "2021.10.12"]
[WhiteClock "0:00:23"]
[BlackClock "0:00:10"]

1. d4 {[%clk 0:03:00]}  g6 {[%clk 0:02:57]} 2. c4 {[%clk 0:03:01]}  Bg7 {[%clk 0:02:57]} 3. Nc3 {[%clk 0:03:01]}  d6 {[%clk 0:02:57]} 4. Nf3 {[%clk 0:03:00]}  e5 {[%clk 0:02:57]} 5. Bg5 {[%clk 0:02:57]}  f6 {[%clk 0:02:57]} 6. Bd2 {[%clk 0:02:55]}  Nc6 {[%clk 0:02:57]} 7. e3 {[%clk 0:02:53]}  Nh6 {[%clk 0:02:57]} 8. Be2 {[%clk 0:02:53]}  O-O {[%clk 0:02:56]} 9. O-O {[%clk 0:02:54]}  f5 {[%clk 0:02:54]} 10. dxe5 {[%clk 0:02:51]}  dxe5 {[%clk 0:02:54]} 11. e4 {[%clk 0:02:51]}  f4 {[%clk 0:02:53]} 12. Nd5 {[%clk 0:02:38]}  Nf7 {[%clk 0:02:51]} 13. b4 {[%clk 0:02:37]}  g5 {[%clk 0:02:51]} 14. b5 {[%clk 0:02:37]}  Nd4 {[%clk 0:02:51]} 15. Nxd4 {[%clk 0:02:36]}  exd4 {[%clk 0:02:52]} 16. Bb4 {[%clk 0:02:36]}  Re8 {[%clk 0:02:51]} 17. Ba3 {[%clk 0:02:16]}  c6 {[%clk 0:02:51]} 18. bxc6 {[%clk 0:02:16]}  bxc6 {[%clk 0:02:52]} 19. Nb4 {[%clk 0:02:17]}  Ne5 {[%clk 0:02:38]} 20. Bh5 {[%clk 0:02:17]}  Re6 {[%clk 0:02:22]} 21. Nd3 {[%clk 0:02:13]}  Nxc4 {[%clk 0:02:17]} 22. Bc5 {[%clk 0:02:09]}  Ne5 {[%clk 0:02:12]} 23. Nxe5 {[%clk 0:02:02]}  Bxe5 {[%clk 0:02:13]} 24. Qb3 {[%clk 0:02:02]}  Kg7 {[%clk 0:02:11]} 25. Bg4 {[%clk 0:01:52]}  Rf6 {[%clk 0:01:59]} 26. Bxc8 {[%clk 0:01:50]}  Rxc8 {[%clk 0:02:00]} 27. f3 {[%clk 0:01:48]}  Rf7 {[%clk 0:01:55]} 28. Rad1 {[%clk 0:01:44]}  Qf6 {[%clk 0:01:55]} 29. Rd3 {[%clk 0:01:39]}  Rd7 {[%clk 0:01:54]} 30. Rfd1 {[%clk 0:01:39]}  h5 {[%clk 0:01:54]} 31. h3 {[%clk 0:01:33]}  Rcd8 {[%clk 0:01:51]} 32. Qc4 {[%clk 0:01:28]}  Qf7 {[%clk 0:01:50]} 33. Qa4 {[%clk 0:01:27]}  Qe6 {[%clk 0:01:48]} 34. Kf1 {[%clk 0:01:22]}  Kg6 {[%clk 0:01:38]} 35. Qb3 {[%clk 0:01:18]}  Qxb3 {[%clk 0:01:37]} 36. axb3 {[%clk 0:01:19]}  Kf7 {[%clk 0:01:33]} 37. b4 {[%clk 0:01:18]}  Ke6 {[%clk 0:01:32]} 38. Ke2 {[%clk 0:01:19]}  Rb8 {[%clk 0:01:31]} 39. Ra3 {[%clk 0:01:18]}  g4 {[%clk 0:01:00]} 40. Ra6 {[%clk 0:01:13]}  gxf3+ {[%clk 0:00:59]} 41. gxf3 {[%clk 0:01:12]}  Rc8 {[%clk 0:00:58]} 42. Rg1 {[%clk 0:01:01]}  d3+ {[%clk 0:00:58]} 43. Kd2 {[%clk 0:01:02]}  Kf7 {[%clk 0:00:39]} 44. h4 {[%clk 0:00:59]}  Rcc7 {[%clk 0:00:37]} 45. Ra3 {[%clk 0:00:46]}  Bf6 {[%clk 0:00:36]} 46. Rxd3 {[%clk 0:00:42]}  Bxh4 {[%clk 0:00:35]} 47. Rh1 {[%clk 0:00:41]}  Be7 {[%clk 0:00:32]} 48. Rxh5 {[%clk 0:00:41]}  Bxc5 {[%clk 0:00:32]} 49. Rxc5 {[%clk 0:00:39]}  Ke6 {[%clk 0:00:31]} 50. Rxd7 {[%clk 0:00:37]}  Rxd7+ {[%clk 0:00:30]} 51. Kc3 {[%clk 0:00:37]}  Rc7 {[%clk 0:00:15]} 52. Kc4 {[%clk 0:00:30]}  Rh7 {[%clk 0:00:09]} 53. Rxc6+ {[%clk 0:00:30]}  Kd7 {[%clk 0:00:10]} 54. Rf6 {[%clk 0:00:30]}  Rh4 {[%clk 0:00:09]} 55. Kd5 {[%clk 0:00:30]}  Ke7 {[%clk 0:00:09]} 56. e5 {[%clk 0:00:30]}  Rh1 {[%clk 0:00:09]} 57. Rxf4 {[%clk 0:00:28]}  Rb1 {[%clk 0:00:08]} 58. Rc4 {[%clk 0:00:27]}  Rd1+ {[%clk 0:00:08]} 59. Rd4 {[%clk 0:00:27]}  Rb1 {[%clk 0:00:08]} 60. f4 {[%clk 0:00:28]}  a6 {[%clk 0:00:08]} 61. f5 {[%clk 0:00:28]}  Rf1 {[%clk 0:00:08]} 62. f6+ {[%clk 0:00:28]}  Kf7 {[%clk 0:00:09]} 63. Kd6 {[%clk 0:00:29]}  Re1 {[%clk 0:00:08]} 64. Rd5 {[%clk 0:00:28]}  Re2 {[%clk 0:00:08]} 65. Ra5 {[%clk 0:00:26]}  Rd2+ {[%clk 0:00:09]} 66. Kc5 {[%clk 0:00:26]}  Ke6 {[%clk 0:00:08]} 67. Rxa6+ {[%clk 0:00:21]}  Kxe5 {[%clk 0:00:09]} 68. f7 {[%clk 0:00:22]}  Rf2 {[%clk 0:00:09]} 69. Ra7 {[%clk 0:00:22]}  Rc2+ {[%clk 0:00:09]} 70. Kb6 {[%clk 0:00:22]}  Rf2 {[%clk 0:00:10]} 71. b5 {[%clk 0:00:23]}  Kd6 {[%clk 0:00:11]} 72. Rb7 {[%clk 0:00:22]}  Rf6 {[%clk 0:00:10]} 73. Ka7 {[%clk 0:00:22]}  Kc5 {[%clk 0:00:11]} 74. b6 {[%clk 0:00:22]}  Rf1 {[%clk 0:00:10]} 75. Rc7+ {[%clk 0:00:22]}  Kd6 {[%clk 0:00:10]} 76. Kb8 {[%clk 0:00:23]} 1-0


[Site "https://www.chess.com"]

[Event "Titled Tuesday Blitz October 12 2021"]
[White "Rozman, Levy"]
[Black "Yoo, Christopher Woojin"]
[WhiteFideId "2039877"]
[BlackFideId "30909694"]
[WhiteElo "2376"]
[BlackElo "2105"]
[Result "1-0"]
[Round "09"]
[TimeControl "180+1"]
[Date "2021.10.12"]
[WhiteClock "0:00:11"]
[BlackClock "0:00:04"]

1. c4 {[%clk 0:03:00]}  Nf6 {[%clk 0:02:59]} 2. Nc3 {[%clk 0:03:00]}  e6 {[%clk 0:02:56]} 3. Nf3 {[%clk 0:02:58]}  d5 {[%clk 0:02:54]} 4. e3 {[%clk 0:02:58]}  b6 {[%clk 0:02:54]} 5. b3 {[%clk 0:02:56]}  Bb7 {[%clk 0:02:55]} 6. Bb2 {[%clk 0:02:55]}  Nbd7 {[%clk 0:02:55]} 7. d4 {[%clk 0:02:50]}  Bd6 {[%clk 0:02:52]} 8. Bd3 {[%clk 0:02:48]}  O-O {[%clk 0:02:51]} 9. O-O {[%clk 0:02:47]}  a6 {[%clk 0:02:50]} 10. Re1 {[%clk 0:02:36]}  Ne4 {[%clk 0:02:46]} 11. Ne2 {[%clk 0:02:32]}  Qe7 {[%clk 0:02:43]} 12. a3 {[%clk 0:02:25]}  Rfd8 {[%clk 0:02:30]} 13. Qc2 {[%clk 0:02:18]}  c5 {[%clk 0:02:29]} 14. Ne5 {[%clk 0:02:09]}  Rac8 {[%clk 0:02:18]} 15. f3 {[%clk 0:01:55]}  Nef6 {[%clk 0:02:12]} 16. Rac1 {[%clk 0:01:42]}  b5 {[%clk 0:01:55]} 17. Nxd7 {[%clk 0:01:36]}  Rxd7 {[%clk 0:01:38]} 18. cxb5 {[%clk 0:01:30]}  c4 {[%clk 0:01:32]} 19. bxc4 {[%clk 0:01:19]}  dxc4 {[%clk 0:01:31]} 20. bxa6 {[%clk 0:01:08]}  Bxa6 {[%clk 0:01:30]} 21. Be4 {[%clk 0:00:57]}  Nxe4 {[%clk 0:01:23]} 22. Qxe4 {[%clk 0:00:51]}  Bb7 {[%clk 0:00:53]} 23. Qc2 {[%clk 0:00:45]}  Qh4 {[%clk 0:00:50]} 24. Ng3 {[%clk 0:00:37]}  Bxg3 {[%clk 0:00:48]} 25. hxg3 {[%clk 0:00:38]}  Qxg3 {[%clk 0:00:48]} 26. Qf2 {[%clk 0:00:37]}  Qd6 {[%clk 0:00:45]} 27. e4 {[%clk 0:00:36]}  Rdc7 {[%clk 0:00:38]} 28. Re3 {[%clk 0:00:26]}  Ba6 {[%clk 0:00:34]} 29. Bc3 {[%clk 0:00:22]}  Rb7 {[%clk 0:00:22]} 30. d5 {[%clk 0:00:16]}  exd5 {[%clk 0:00:20]} 31. exd5 {[%clk 0:00:17]}  Qxd5 {[%clk 0:00:07]} 32. Qg3 {[%clk 0:00:16]}  f5 {[%clk 0:00:04]} 33. Rce1 {[%clk 0:00:15]}  Qf7 {[%clk 0:00:04]} 34. Qd6 {[%clk 0:00:11]} 1-0


[Site "https://www.chess.com"]

[Event "Titled Tuesday Blitz October 12 2021"]
[White "Shipov, Sergei"]
[Black "Milchev, Nikolay"]
[WhiteFideId "4113624"]
[BlackFideId "2906090"]
[WhiteElo "2820"]
[BlackElo "2449"]
[Result "1-0"]
[Round "09"]
[TimeControl "180+1"]
[Date "2021.10.12"]
[WhiteClock "0:00:16"]
[BlackClock "0:01:00"]

1. d4 {[%clk 0:03:00]}  Nf6 {[%clk 0:03:00]} 2. c4 {[%clk 0:03:00]}  g6 {[%clk 0:03:00]} 3. Nc3 {[%clk 0:03:00]}  Bg7 {[%clk 0:03:00]} 4. e4 {[%clk 0:03:01]}  O-O {[%clk 0:03:01]} 5. Be2 {[%clk 0:03:01]}  d6 {[%clk 0:03:01]} 6. g4 {[%clk 0:03:01]}  c5 {[%clk 0:03:00]} 7. g5 {[%clk 0:03:01]}  Nfd7 {[%clk 0:02:58]} 8. d5 {[%clk 0:03:01]}  b5 {[%clk 0:02:58]} 9. Nxb5 {[%clk 0:03:00]}  Ba6 {[%clk 0:02:57]} 10. a4 {[%clk 0:02:57]}  Nb6 {[%clk 0:02:47]} 11. h4 {[%clk 0:02:53]}  Bxb5 {[%clk 0:02:46]} 12. axb5 {[%clk 0:02:52]}  a6 {[%clk 0:02:46]} 13. h5 {[%clk 0:02:37]}  axb5 {[%clk 0:02:46]} 14. Rxa8 {[%clk 0:02:36]}  Nxa8 {[%clk 0:02:47]} 15. cxb5 {[%clk 0:02:36]}  Nd7 {[%clk 0:02:40]} 16. hxg6 {[%clk 0:02:34]}  hxg6 {[%clk 0:02:39]} 17. Qd3 {[%clk 0:02:32]}  Re8 {[%clk 0:02:37]} 18. Bd2 {[%clk 0:02:24]}  Qb6 {[%clk 0:02:29]} 19. Bc3 {[%clk 0:02:23]}  Ne5 {[%clk 0:02:09]} 20. Qh3 {[%clk 0:02:18]}  Nc7 {[%clk 0:02:08]} 21. f4 {[%clk 0:02:18]}  Nxb5 {[%clk 0:02:09]} 22. Bxb5 {[%clk 0:02:10]}  Qxb5 {[%clk 0:02:07]} 23. fxe5 {[%clk 0:02:10]}  dxe5 {[%clk 0:02:07]} 24. Kf2 {[%clk 0:02:05]}  Ra8 {[%clk 0:02:04]} 25. Nf3 {[%clk 0:02:03]}  Qd3 {[%clk 0:02:02]} 26. Nxe5 {[%clk 0:01:13]}  Qxe4 {[%clk 0:01:55]} 27. Qf3 {[%clk 0:00:27]}  Qc2+ {[%clk 0:01:42]} 28. Kg3 {[%clk 0:00:27]}  Rf8 {[%clk 0:01:42]} 29. Ng4 {[%clk 0:00:20]}  Bxc3 {[%clk 0:01:32]} 30. Qxc3 {[%clk 0:00:20]}  Qxc3+ {[%clk 0:01:31]} 31. bxc3 {[%clk 0:00:20]}  Rb8 {[%clk 0:01:32]} 32. Rf1 {[%clk 0:00:18]}  Kg7 {[%clk 0:01:31]} 33. Ne5 {[%clk 0:00:14]}  f6 {[%clk 0:01:31]} 34. gxf6+ {[%clk 0:00:14]}  exf6 {[%clk 0:01:31]} 35. Rxf6 {[%clk 0:00:15]}  Rb3 {[%clk 0:01:03]} 36. Rf3 {[%clk 0:00:15]}  Rb1 {[%clk 0:00:58]} 37. d6 {[%clk 0:00:14]}  Rd1 {[%clk 0:00:58]} 38. Rd3 {[%clk 0:00:15]}  Rxd3+ {[%clk 0:00:59]} 39. Nxd3 {[%clk 0:00:15]}  c4 {[%clk 0:00:59]} 40. d7 {[%clk 0:00:14]}  Kf6 {[%clk 0:01:00]} 41. d8=Q+ {[%clk 0:00:14]}  Ke6 {[%clk 0:01:01]} 42. Nc5+ {[%clk 0:00:14]}  Ke5 {[%clk 0:01:00]} 43. Qd4+ {[%clk 0:00:15]}  Kf5 {[%clk 0:01:00]} 44. Qf4# {[%clk 0:00:16]} 1-0


[Site "https://www.chess.com"]

[Event "Titled Tuesday Blitz October 12 2021"]
[White "Solon, Nathan"]
[Black "Solomon, Kenny"]
[WhiteFideId "2017229"]
[BlackFideId "14300192"]
[WhiteElo "2676"]
[BlackElo "2415"]
[Result "1-0"]
[Round "09"]
[TimeControl "180+1"]
[Date "2021.10.12"]
[WhiteClock "0:00:14"]
[BlackClock "0:00:12"]

1. d4 {[%clk 0:03:00]}  Nf6 {[%clk 0:02:59]} 2. Bg5 {[%clk 0:03:00]}  d5 {[%clk 0:02:58]} 3. e3 {[%clk 0:03:00]}  c5 {[%clk 0:02:58]} 4. Bxf6 {[%clk 0:03:00]}  gxf6 {[%clk 0:02:58]} 5. dxc5 {[%clk 0:03:00]}  e5 {[%clk 0:02:26]} 6. c4 {[%clk 0:03:00]}  dxc4 {[%clk 0:02:20]} 7. Qxd8+ {[%clk 0:02:59]}  Kxd8 {[%clk 0:02:21]} 8. Bxc4 {[%clk 0:03:00]}  Bxc5 {[%clk 0:02:17]} 9. Bxf7 {[%clk 0:02:57]}  Ke7 {[%clk 0:02:18]} 10. Bb3 {[%clk 0:02:55]}  Nc6 {[%clk 0:02:15]} 11. Nc3 {[%clk 0:02:55]}  Nb4 {[%clk 0:02:06]} 12. Ke2 {[%clk 0:02:31]}  Bf5 {[%clk 0:02:05]} 13. e4 {[%clk 0:02:27]}  Bg4+ {[%clk 0:02:03]} 14. f3 {[%clk 0:02:20]}  Be6 {[%clk 0:01:57]} 15. Bxe6 {[%clk 0:01:42]}  Kxe6 {[%clk 0:01:58]} 16. Rc1 {[%clk 0:01:42]}  Bd4 {[%clk 0:01:54]} 17. Nh3 {[%clk 0:01:20]}  Rhg8 {[%clk 0:01:49]} 18. g3 {[%clk 0:01:19]}  a6 {[%clk 0:01:45]} 19. f4 {[%clk 0:01:14]}  Rac8 {[%clk 0:01:34]} 20. f5+ {[%clk 0:01:13]}  Kf7 {[%clk 0:01:34]} 21. Nd5 {[%clk 0:00:55]}  Nxa2 {[%clk 0:01:21]} 22. Rxc8 {[%clk 0:00:49]}  Rxc8 {[%clk 0:01:22]} 23. Kd3 {[%clk 0:00:45]}  Nc1+ {[%clk 0:01:19]} 24. Kd2 {[%clk 0:00:43]}  Nb3+ {[%clk 0:01:17]} 25. Kd3 {[%clk 0:00:43]}  Nc5+ {[%clk 0:01:13]} 26. Ke2 {[%clk 0:00:38]}  Nxe4 {[%clk 0:01:14]} 27. Kd3 {[%clk 0:00:32]}  Nc5+ {[%clk 0:01:08]} 28. Ke2 {[%clk 0:00:33]}  Nb3 {[%clk 0:01:04]} 29. Kd3 {[%clk 0:00:31]}  Bxb2 {[%clk 0:01:01]} 30. Rb1 {[%clk 0:00:31]}  Nc5+ {[%clk 0:00:57]} 31. Ke2 {[%clk 0:00:29]}  Bd4 {[%clk 0:00:56]} 32. Nf2 {[%clk 0:00:26]}  Bxf2 {[%clk 0:00:54]} 33. Kxf2 {[%clk 0:00:27]}  Rd8 {[%clk 0:00:53]} 34. Ne3 {[%clk 0:00:23]}  Rd2+ {[%clk 0:00:51]} 35. Kf3 {[%clk 0:00:22]}  Ke7 {[%clk 0:00:45]} 36. Rb6 {[%clk 0:00:20]}  Rd6 {[%clk 0:00:42]} 37. Rb1 {[%clk 0:00:18]}  b5 {[%clk 0:00:42]} 38. Rc1 {[%clk 0:00:18]}  Nd7 {[%clk 0:00:38]} 39. Rc7 {[%clk 0:00:17]}  Kd8 {[%clk 0:00:37]} 40. Ra7 {[%clk 0:00:16]}  Rb6 {[%clk 0:00:36]} 41. Nd5 {[%clk 0:00:16]}  Rb8 {[%clk 0:00:33]} 42. Nb4 {[%clk 0:00:15]}  Rc8 {[%clk 0:00:32]} 43. Rxa6 {[%clk 0:00:15]}  Ke7 {[%clk 0:00:31]} 44. Nd5+ {[%clk 0:00:15]}  Kf7 {[%clk 0:00:27]} 45. Rd6 {[%clk 0:00:15]}  Ke8 {[%clk 0:00:25]} 46. Nxf6+ {[%clk 0:00:11]}  Nxf6 {[%clk 0:00:23]} 47. Rxf6 {[%clk 0:00:12]}  Kd7 {[%clk 0:00:20]} 48. Rb6 {[%clk 0:00:12]}  Rc5 {[%clk 0:00:18]} 49. Ke4 {[%clk 0:00:10]}  Ke7 {[%clk 0:00:18]} 50. g4 {[%clk 0:00:07]}  Kf7 {[%clk 0:00:16]} 51. g5 {[%clk 0:00:07]}  Kg7 {[%clk 0:00:12]} 52. Rb7+ {[%clk 0:00:07]}  Kg8 {[%clk 0:00:12]} 53. f6 {[%clk 0:00:08]}  Kf8 {[%clk 0:00:08]} 54. h4 {[%clk 0:00:08]}  Kg8 {[%clk 0:00:08]} 55. Kf5 {[%clk 0:00:07]}  e4+ {[%clk 0:00:09]} 56. Kxe4 {[%clk 0:00:07]}  Rc4+ {[%clk 0:00:08]} 57. Kf5 {[%clk 0:00:07]}  Rxh4 {[%clk 0:00:09]} 58. Rb8+ {[%clk 0:00:07]}  Kf7 {[%clk 0:00:08]} 59. Rb7+ {[%clk 0:00:08]}  Kf8 {[%clk 0:00:09]} 60. Rxb5 {[%clk 0:00:08]}  Rh1 {[%clk 0:00:06]} 61. Rb8+ {[%clk 0:00:09]}  Kf7 {[%clk 0:00:06]} 62. Rb7+ {[%clk 0:00:10]}  Kf8 {[%clk 0:00:06]} 63. Ra7 {[%clk 0:00:08]}  Rf1+ {[%clk 0:00:06]} 64. Kg4 {[%clk 0:00:08]}  Re1 {[%clk 0:00:07]} 65. Rxh7 {[%clk 0:00:06]}  Rg1+ {[%clk 0:00:08]} 66. Kf5 {[%clk 0:00:06]}  Kg8 {[%clk 0:00:08]} 67. Rg7+ {[%clk 0:00:06]}  Kf8 {[%clk 0:00:09]} 68. Kg6 {[%clk 0:00:07]}  Rh1 {[%clk 0:00:08]} 69. Ra7 {[%clk 0:00:06]}  Ke8 {[%clk 0:00:08]} 70. Ra8+ {[%clk 0:00:06]}  Kd7 {[%clk 0:00:08]} 71. f7 {[%clk 0:00:07]}  Rf1 {[%clk 0:00:08]} 72. f8=Q {[%clk 0:00:08]}  Rxf8 {[%clk 0:00:08]} 73. Rxf8 {[%clk 0:00:08]}  Ke7 {[%clk 0:00:09]} 74. Rf6 {[%clk 0:00:09]}  Kd7 {[%clk 0:00:09]} 75. Kf5 {[%clk 0:00:10]}  Ke7 {[%clk 0:00:10]} 76. g6 {[%clk 0:00:11]}  Kd7 {[%clk 0:00:11]} 77. g7 {[%clk 0:00:12]}  Ke7 {[%clk 0:00:12]} 78. g8=Q {[%clk 0:00:13]}  Kd7 {[%clk 0:00:12]} 79. Qg7+ {[%clk 0:00:13]}  Ke8 {[%clk 0:00:12]} 80. Rf8# {[%clk 0:00:14]} 1-0


[Site "https://www.chess.com"]